fUST/lending_fUST_20250106
["ID","MTS","AMOUNT","RATE_DAILY","PERIOD"]
[347823797,1736136638482,-500.0,0.00020525,3]
[347823798,1736136638492,-500.0,0.00020525,3]
[347823799,1736136638501,-500.0,0.00020525,3]
[347823800,1736136638510,-500.0,0.00020525,3]
[347823801,1736136638519,-500.0,0.00020525,3]
[347823802,1736136638528,-1230.22,0.00020525,3]
[347823803,1736136638537,-500.0,0.00020525,3]
[347823804,1736136638547,-500.0,0.00020525,3]
[347823805,1736136638556,-554.69,0.00020525,3]
[347823806,1736136638565,-500.0,0.00020525,3]
[347823807,1736136638574,-647.1,0.00020525,3]
[347823808,1736136638583,-674.93,0.00020525,3]
[347823809,1736136638592,-919.60262653,0.00020571,2]
[347823810,1736136638602,-500.0,0.00020574,2]
[347823811,1736136638613,-467.83419281,0.00020574,2]
[347823812,1736136638622,-500.0,0.00020574,2]
[347823813,1736136638631,-500.0,0.00020574,2]
[347823814,1736136638640,-500.0,0.00020574,2]
[347823815,1736136638651,-487.40424681,0.00020574,2]
[347823817,1736136638660,-602.98861989,0.00020574,2]
[347823819,1736136638669,-500.0,0.00020574,2]
[347823821,1736136638678,-401.73711009,0.00020574,2]
[347823823,1736136638689,-500.0,0.00020574,2]
[347823825,1736136638699,-500.0,0.00020574,2]
[347823827,1736136638708,-188.95331494,0.00020574,2]
[347823829,1736136638717,-500.0,0.00020574,2]
[347823831,1736136638726,-509.86628519,0.00020574,2]
[347823833,1736136638737,-500.0,0.00020574,2]
[347823835,1736136638745,-500.0,0.00020574,2]
[347823837,1736136638754,-500.0,0.00020574,2]
[347823839,1736136638763,-500.0,0.00020574,2]
[347823841,1736136638772,-500.0,0.00020574,2]
[347823843,1736136638781,-500.0,0.00020574,2]
[347823845,1736136638790,-475.37019158,0.00020574,2]
[347823846,1736136638799,-498.44403724,0.00020574,2]
[347823849,1736136638808,-500.0,0.00020574,2]
[347823851,1736136638818,-500.0,0.00020574,2]
[347823853,1736136638827,-500.0,0.00020574,2]
[347823854,1736136638836,-500.0,0.00020574,2]
[347823856,1736136638845,-500.0,0.00020574,2]
[347823858,1736136638855,-502.64043118,0.00020574,2]
[347823860,1736136638864,-500.0,0.00020574,2]
[347823861,1736136638873,-500.0,0.00020574,2]
[347823862,1736136638882,-500.0,0.00020574,2]
[347823863,1736136638892,-314.55892687,0.00020574,2]
[347823864,1736136638901,-500.0,0.00020574,2]
[347823865,1736136638910,-500.0,0.00020574,2]
[347823866,1736136638920,-500.0,0.00020574,2]
[347823867,1736136638929,-500.0,0.00020574,2]
[347823868,1736136638938,-500.0,0.00020574,2]
[347823869,1736136638948,-500.0,0.00020574,2]
[347823870,1736136638957,-12835.80753017,0.00020575,2]
[347823871,1736136638967,-500.0,0.00020593,3]
[347823872,1736136638976,-11206.05,0.00020593,2]
[347823873,1736136638985,-500.0,0.00020593,3]
[347823874,1736136638995,-500.0,0.00020593,3]
[347823875,1736136639004,-152.0,0.00020603,2]
[347823876,1736136639013,-919.60262653,0.00020639,2]
[347823877,1736136639023,-731.28298258,0.00020666,2]
[347823878,1736136639032,-919.60262653,0.00020707,2]
[347823879,1736136639041,-500.0,0.0002075,3]
[347823880,1736136639051,-500.0,0.0002075,3]
[347823882,1736136639060,-500.0,0.0002075,3]
[347823884,1736136639069,-1376.34,0.0002075,3]
[347823886,1736136639079,-1000.0,0.0002075,7]
[347823888,1736136639087,-516.96,0.0002075,3]
[347823890,1736136639097,-500.0,0.0002075,3]
[347823892,1736136639106,-500.0,0.0002075,3]
[347823894,1736136639115,-500.0,0.0002075,3]
[347823896,1736136639124,-500.0,0.0002075,3]
[347823898,1736136639133,-3405.79,0.0002075,3]
[347823900,1736136639142,-1189.76880363,0.00020773,2]
[347823902,1736136639151,-391.66422128,0.00020773,2]
[347823904,1736136639160,-919.60262653,0.00020775,2]
[347823906,1736136639169,-539.2902285,0.00020791,2]
[347823908,1736136639178,-500.0,0.00020799,3]
[347823910,1736136639187,-2168.69,0.00020799,3]
[347823912,1736136639196,-500.0,0.00020799,3]
[347823914,1736136639208,-500.0,0.00020799,3]
[347823916,1736136639217,-500.0,0.00020799,3]
[347823918,1736136639227,-1103.91,0.00020799,3]
[347823921,1736136639237,-640.52,0.00020799,3]
[347823923,1736136639247,-504.98,0.00020799,3]
[347823925,1736136639257,-500.0,0.00020799,3]
[347823927,1736136639266,-500.0,0.00020799,3]
[347823929,1736136639275,-500.0,0.00020799,3]
[347823931,1736136639285,-500.0,0.00020799,3]
[347823933,1736136639294,-1230.22,0.00020799,3]
[347823935,1736136639303,-500.0,0.00020799,3]
[347823937,1736136639312,-500.0,0.00020799,3]
[347823939,1736136639321,-554.69,0.00020799,3]
[347823941,1736136639331,-247.89631805,0.00020799,3]
[347823943,1736136639339,-647.1,0.00020799,3]
[347823945,1736136639349,-674.93,0.00020799,3]
[347823947,1736136639359,-264.64237495,0.00020866,2]
[347823949,1736136639368,-500.0,0.00020866,2]
[347823951,1736136639377,-207.45055404,0.00020866,2]
[347823953,1736136639387,-243.0695103,0.00020866,2]
[347823955,1736136639397,-11206.05,0.00020867,2]
[347823957,1736136639406,-500.0,0.00020867,3]
[347823958,1736136639415,-500.0,0.00020867,3]
[347823961,1736136639424,-500.0,0.00020871,3]
[347823963,1736136639434,-500.0,0.00020872,3]
[347823965,1736136639443,-500.0,0.00020872,3]
[347823966,1736136639454,-499.0,0.00020872,2]
[347823968,1736136639463,-500.0,0.00020872,3]
[347823971,1736136639473,-500.0,0.00020872,3]
[347823973,1736136639482,-500.0,0.00020872,3]
[347823975,1736136639491,-500.0,0.00020872,3]
[347823977,1736136639500,-500.0,0.00020872,3]
[347823979,1736136639509,-500.0,0.00020872,3]
[347823981,1736136639520,-500.0,0.00020872,3]
[347823983,1736136639531,-1691.71768104,0.00020873,2]
[347823985,1736136639540,-12676.71889805,0.00020873,2]
[347823987,1736136639550,-500.67711251,0.00020873,2]
[347823989,1736136639559,-478.05500604,0.00020873,2]
[347823991,1736136639568,-500.0,0.00020873,2]
[347823993,1736136639577,-500.0,0.00020873,2]
[347823995,1736136639586,-500.0,0.00020873,2]
[347823997,1736136639595,-314.41831418,0.00020873,2]
[347823999,1736136639604,-502.1832215,0.00020873,2]
[347824001,1736136639618,-269.28444726,0.00020873,2]
[347824003,1736136639627,-501.78993406,0.00020873,2]
[347824005,1736136639636,-500.0,0.00020873,2]
[347824007,1736136639646,-179.45969801,0.00020873,2]
[347824009,1736136639658,-426.36987106,0.00020873,2]
[347824011,1736136639667,-501.89475189,0.00020873,2]
[347824013,1736136639677,-500.7829741,0.00020873,2]
[347824015,1736136639688,-160.15407924,0.00020873,2]
[347824019,1736136639699,-500.85334312,0.00020873,2]
[347824021,1736136639708,-500.0,0.00020873,3]
[347824023,1736136639718,-500.0,0.00020873,3]
[347824025,1736136639726,-505.67587856,0.00020873,3]
[347824027,1736136639735,-500.0,0.00020873,3]
[347824030,1736136639745,-500.0,0.00020873,3]
[347824032,1736136639755,-500.0,0.00020873,3]
[347824034,1736136639764,-500.89876206,0.00020873,3]
[347824035,1736136639774,-500.0,0.00020873,3]
[347824036,1736136639783,-500.0,0.00020873,3]
[347824037,1736136639793,-500.0,0.00020873,3]
[347824038,1736136639802,-500.88602919,0.00020873,3]
[347824039,1736136639811,-500.0,0.00020873,3]
[347824040,1736136639820,-500.0,0.00020873,3]
[347824041,1736136639830,-503.42680715,0.00020873,3]
[347824043,1736136639839,-500.0,0.00020873,3]
[347824045,1736136639848,-502.63894908,0.00020873,3]
[347824046,1736136639857,-544.09978756,0.00020873,3]
[347824048,1736136639867,-503.0013395,0.00020873,2]
[347824050,1736136639876,-500.0,0.00020873,3]
[347824051,1736136639886,-500.0,0.00020873,3]
[347824052,1736136639895,-500.0,0.00020873,3]
[347824053,1736136639904,-500.0,0.00020873,3]
[347824054,1736136639913,-501.86984387,0.00020873,3]
[347824055,1736136639922,-500.0,0.00020873,3]
[347824056,1736136639932,-502.91588067,0.00020873,3]
[347824057,1736136639941,-500.0,0.00020873,3]
[347824058,1736136639952,-500.0,0.00020873,3]
[347824059,1736136639961,-500.0,0.00020873,3]
[347824061,1736136639971,-500.0,0.00020873,3]
[347824063,1736136639980,-500.0,0.00020873,3]
[347824073,1736136640061,-506.35723551,0.00020873,3]
[347824075,1736136640071,-500.0,0.00020873,3]
[347824076,1736136640080,-500.0,0.00020873,3]
[347824078,1736136640090,-500.0,0.00020873,3]
[347824080,1736136640099,-500.0,0.00020873,3]
[347824082,1736136640108,-500.0,0.00020873,3]
[347824084,1736136640117,-500.0,0.00020873,3]
[347824086,1736136640127,-500.0,0.00020873,3]
[347824088,1736136640136,-500.0,0.00020873,3]
[347824090,1736136640146,-502.57351732,0.00020873,3]
[347824092,1736136640155,-500.67974322,0.00020873,3]
[347824094,1736136640164,-500.0,0.00020873,3]
[347824096,1736136640174,-523.52470151,0.00020873,3]
[347824098,1736136640183,-503.15233654,0.00020873,3]
[347824100,1736136640192,-200.0,0.00020873,3]
[347824102,1736136640203,-500.0,0.00020873,3]
[347824103,1736136640213,-500.0,0.00020873,3]
[347824104,1736136640222,-500.0,0.00020873,3]
[347824105,1736136640232,-500.0,0.00020873,3]
[347824106,1736136640241,-500.0,0.00020873,3]
[347824107,1736136640250,-488.33089946,0.00020873,3]
[347824108,1736136640260,-500.0,0.00020873,3]
[347824109,1736136640269,-500.0,0.00020873,3]
[347824110,1736136640278,-512.42009064,0.00020873,3]
[347824111,1736136640288,-500.0,0.00020873,3]
[347824112,1736136640298,-500.0,0.00020873,3]
[347824113,1736136640307,-500.0,0.00020873,3]
[347824114,1736136640317,-500.0,0.00020873,3]
[347824115,1736136640327,-500.0,0.00020873,3]
[347824116,1736136640336,-500.0,0.00020873,3]
[347824117,1736136640346,-500.0,0.00020873,3]
[347824118,1736136640355,-501.8614608,0.00020873,3]
[347824119,1736136640364,-501.13434528,0.00020873,3]
[347824120,1736136640373,-502.44856659,0.00020873,3]
[347824121,1736136640382,-500.0,0.00020873,3]
[347824122,1736136640392,-500.0,0.00020873,3]
[347824123,1736136640401,-500.0,0.00020873,3]
[347824124,1736136640411,-500.0,0.00020873,3]
[347824125,1736136640420,-500.0,0.00020873,3]
[347824126,1736136640429,-500.0,0.00020873,3]
[347824127,1736136640439,-500.0,0.00020873,3]
[347824128,1736136640450,-499.93448225,0.00020873,3]
[347824129,1736136640459,-502.8594429,0.00020873,3]
[347824130,1736136640468,-500.0,0.00020873,3]
[347824131,1736136640478,-500.0,0.00020873,3]
[347824132,1736136640487,-500.0,0.00020873,3]
[347824133,1736136640496,-500.0,0.00020873,3]
[347824134,1736136640506,-503.12632762,0.00020873,3]
[347824135,1736136640515,-500.0,0.00020873,3]
[347824136,1736136640524,-500.0,0.00020873,3]
[347824137,1736136640534,-500.0,0.00020873,3]
[347824138,1736136640543,-500.0,0.00020873,3]
[347824139,1736136640552,-500.0,0.00020873,3]
[347824140,1736136640561,-500.0,0.00020873,3]
[347824141,1736136640571,-500.89858554,0.00020873,3]
[347824142,1736136640580,-500.0,0.00020873,3]
[347824143,1736136640589,-500.0,0.00020873,3]
[347824144,1736136640598,-555.34742135,0.00020873,3]
[347824145,1736136640607,-500.0,0.00020873,3]
[347824146,1736136640620,-500.0,0.00020873,3]
[347824147,1736136640630,-501.08890506,0.00020873,3]
[347824148,1736136640639,-634.71343788,0.00020873,3]
[347824149,1736136640649,-500.0,0.00020873,3]
[347824150,1736136640659,-500.0,0.00020873,3]
[347824151,1736136640669,-500.0,0.00020873,3]
[347824152,1736136640678,-500.0,0.00020873,3]
[347824153,1736136640688,-500.0,0.00020873,3]
[347824154,1736136640698,-500.0,0.00020873,3]
[347824155,1736136640707,-453.94551569,0.00020873,3]
[347824156,1736136640716,-500.55397821,0.00020873,3]
[347824157,1736136640725,-500.38349074,0.00020873,3]
[347824158,1736136640735,-500.0,0.00020873,3]
[347824159,1736136640744,-500.0,0.00020873,3]
[347824160,1736136640753,-500.0,0.00020873,3]
[347824161,1736136640763,-500.0,0.00020873,3]
[347824162,1736136640772,-500.0,0.00020873,3]
[347824163,1736136640781,-500.0,0.00020873,3]
[347824164,1736136640791,-500.0,0.00020873,3]
[347824165,1736136640800,-500.0,0.00020873,3]
[347824166,1736136640809,-500.0,0.00020873,3]
[347824167,1736136640819,-500.0,0.00020873,3]
[347824168,1736136640830,-490.39099244,0.00020873,3]
[347824169,1736136640839,-500.69292853,0.00020873,3]
[347824170,1736136640848,-500.0,0.00020873,3]
[347824171,1736136640857,-500.0,0.00020873,3]
[347824172,1736136640866,-500.0,0.00020873,3]
[347824173,1736136640875,-524.71198438,0.00020873,3]
[347824174,1736136640884,-500.0,0.00020873,3]
[347824175,1736136640893,-501.39319244,0.00020873,3]
[347824176,1736136640902,-501.24723721,0.00020873,3]
[347824177,1736136640911,-500.0,0.00020873,3]
[347824178,1736136640920,-500.0,0.00020873,3]
[347824179,1736136640930,-500.0,0.00020873,3]
[347824180,1736136640939,-500.0,0.00020873,3]
[347824181,1736136640950,-500.94781222,0.00020873,3]
[347824182,1736136640959,-500.0,0.00020873,3]
[347824183,1736136640968,-500.0,0.00020873,3]
[347824184,1736136640977,-500.0,0.00020873,3]
[347824185,1736136640987,-500.62392111,0.00020873,3]
[347824186,1736136640996,-500.0,0.00020873,3]
[347824187,1736136641005,-500.0,0.00020873,3]
[347824188,1736136641014,-500.0,0.00020873,3]
[347824189,1736136641024,-504.07609066,0.00020873,3]
[347824190,1736136641033,-500.0,0.00020873,3]
[347824191,1736136641042,-500.0,0.00020873,3]
[347824192,1736136641051,-500.0,0.00020873,3]
[347824193,1736136641061,-500.84342037,0.00020873,3]
[347824194,1736136641070,-500.0,0.00020873,3]
[347824195,1736136641079,-500.0,0.00020873,3]
[347824196,1736136641088,-500.91448685,0.00020873,3]
[347824197,1736136641097,-500.0,0.00020873,3]
[347824198,1736136641106,-502.34863176,0.00020873,3]
[347824199,1736136641115,-500.0,0.00020873,3]
[347824200,1736136641125,-500.0,0.00020873,3]
[347824201,1736136641134,-500.0,0.00020873,3]
[347824202,1736136641143,-500.0,0.00020873,3]
[347824203,1736136641153,-500.0,0.00020873,3]
[347824204,1736136641162,-500.0,0.00020873,3]
[347824205,1736136641171,-500.0,0.00020873,3]
[347824206,1736136641180,-502.86593566,0.00020873,3]
[347824207,1736136641190,-500.0,0.00020873,3]
[347824208,1736136641200,-500.0,0.00020873,3]
[347824209,1736136641209,-500.0,0.00020873,3]
[347824210,1736136641218,-500.0,0.00020873,3]
[347824211,1736136641227,-500.0,0.00020873,3]
[347824212,1736136641237,-500.0,0.00020873,3]
[347824213,1736136641246,-500.0,0.00020873,3]
[347824214,1736136641255,-500.0,0.00020873,3]
[347824215,1736136641265,-502.06604425,0.00020873,3]
[347824216,1736136641274,-500.0,0.00020873,3]
[347824217,1736136641283,-500.0,0.00020873,3]
[347824218,1736136641292,-500.0,0.00020873,3]
[347824219,1736136641301,-501.66683582,0.00020873,3]
[347824220,1736136641311,-500.0,0.00020873,3]
[347824221,1736136641321,-516.23917047,0.00020873,3]
[347824222,1736136641330,-310.5513436,0.00020873,3]
[347824223,1736136641339,-500.0,0.00020873,3]
[347824224,1736136641349,-500.0,0.00020873,3]
[347824225,1736136641358,-500.0,0.00020873,3]
[347824226,1736136641367,-500.0,0.00020873,3]
[347824227,1736136641376,-501.30235415,0.00020873,3]
[347824228,1736136641386,-500.0,0.00020873,3]
[347824229,1736136641395,-502.345016,0.00020873,3]
[347824230,1736136641404,-500.0,0.00020873,3]
[347824231,1736136641413,-500.87012008,0.00020873,3]
[347824232,1736136641422,-500.0,0.00020873,3]
[347824233,1736136641432,-501.46204674,0.00020873,3]
[347824234,1736136641441,-517.77911587,0.00020873,3]
[347824235,1736136641452,-500.98163604,0.00020873,3]
[347824236,1736136641462,-501.44338919,0.00020873,3]
[347824237,1736136641471,-500.0,0.00020873,3]
[347824238,1736136641480,-501.58743357,0.00020873,3]
[347824239,1736136641490,-501.47072251,0.00020873,3]
[347824240,1736136641499,-504.44932953,0.00020873,3]
[347824241,1736136641509,-500.0,0.00020873,3]
[347824242,1736136641518,-504.58159755,0.00020873,3]
[347824243,1736136641527,-500.0,0.00020873,3]
[347824244,1736136641536,-500.0,0.00020873,3]
[347824245,1736136641545,-501.69241219,0.00020873,3]
[347824246,1736136641624,-500.0,0.00020873,3]
[347824247,1736136641634,-500.0,0.00020873,3]
[347824248,1736136641643,-501.76238129,0.00020873,3]
[347824249,1736136641652,-500.0,0.00020873,3]
[347824250,1736136641662,-500.0,0.00020873,3]
[347824251,1736136641671,-501.51522248,0.00020873,3]
[347824252,1736136641680,-503.82328575,0.00020873,3]
[347824253,1736136641692,-500.0,0.00020873,3]
[347824254,1736136641702,-500.0,0.00020873,3]
[347824255,1736136641713,-501.44485991,0.00020873,3]
[347824256,1736136641722,-500.0,0.00020873,3]
[347824257,1736136641731,-501.16876906,0.00020873,3]
[347824258,1736136641740,-500.0,0.00020873,3]
[347824259,1736136641749,-500.0,0.00020873,3]
[347824260,1736136641759,-500.34003361,0.00020873,3]
[347824261,1736136641768,-500.0,0.00020873,3]
[347824262,1736136641777,-500.79542543,0.00020873,3]
[347824263,1736136641786,-500.0,0.00020873,3]
[347824264,1736136641795,-500.0,0.00020873,3]
[347824265,1736136641805,-500.57991702,0.00020873,3]
[347824266,1736136641814,-500.0,0.00020873,3]
[347824267,1736136641823,-500.0,0.00020873,3]
[347824268,1736136641832,-500.0,0.00020873,3]
[347824269,1736136641841,-415.37136336,0.00020873,3]
[347824270,1736136641851,-500.0,0.00020873,3]
[347824271,1736136641860,-502.99136983,0.00020873,3]
[347824272,1736136641870,-500.0,0.00020873,3]
[347824273,1736136641879,-500.0,0.00020873,3]
[347824274,1736136641888,-500.0,0.00020873,3]
[347824275,1736136641897,-500.0,0.00020873,3]
[347824276,1736136641906,-500.0,0.00020873,3]
[347824277,1736136641915,-500.0,0.00020873,3]
[347824278,1736136641924,-500.0,0.00020873,3]
[347824279,1736136641933,-501.43068004,0.00020873,3]
[347824280,1736136641942,-505.23999294,0.00020873,3]
[347824281,1736136641954,-500.0,0.00020873,3]
[347824282,1736136641963,-500.81117126,0.00020873,3]
[347824283,1736136641972,-220.92873437,0.00020873,3]
[347824284,1736136641982,-500.0,0.00020873,3]
[347824285,1736136641991,-500.73235626,0.00020873,2]
[347824286,1736136642000,-500.0,0.00020873,3]
[347824287,1736136642010,-500.0,0.00020873,3]
[347824288,1736136642019,-500.0,0.00020873,3]
[347824289,1736136642028,-500.0,0.00020873,3]
[347824290,1736136642038,-500.0,0.00020873,3]
[347824291,1736136642047,-500.0,0.00020873,3]
[347824292,1736136642057,-500.0,0.00020873,3]
[347824293,1736136642066,-500.0,0.00020873,3]
[347824294,1736136642076,-503.1886293,0.00020873,3]
[347824295,1736136642085,-500.0,0.00020873,3]
[347824296,1736136642094,-500.0,0.00020873,3]
[347824297,1736136642104,-501.64452293,0.00020873,3]
[347824298,1736136642113,-501.56804556,0.00020873,3]
[347824299,1736136642123,-501.32721058,0.00020873,3]
[347824300,1736136642132,-500.0,0.00020873,3]
[347824301,1736136642141,-501.71403978,0.00020873,3]
[347824302,1736136642151,-500.0,0.00020873,3]
[347824303,1736136642160,-500.0,0.00020873,3]
[347824304,1736136642169,-500.0,0.00020873,3]
[347824305,1736136642179,-500.0,0.00020873,3]
[347824306,1736136642188,-500.0,0.00020873,3]
[347824307,1736136642198,-500.0,0.00020873,3]
[347824308,1736136642208,-500.0,0.00020873,3]
[347824309,1736136642217,-500.0,0.00020873,3]
[347824310,1736136642227,-500.0,0.00020873,3]
[347824311,1736136642236,-500.0,0.00020873,3]
[347824312,1736136642245,-500.0,0.00020873,3]
[347824313,1736136642255,-500.89758369,0.00020873,3]
[347824314,1736136642265,-500.0,0.00020873,3]
[347824315,1736136642274,-500.0,0.00020873,3]
[347824316,1736136642283,-501.40746828,0.00020873,3]
[347824317,1736136642292,-500.0,0.00020873,3]
[347824318,1736136642302,-500.0,0.00020873,3]
[347824319,1736136642311,-500.0,0.00020873,3]
[347824320,1736136642321,-562.75016959,0.00020873,3]
[347824321,1736136642330,-500.0,0.00020873,3]
[347824322,1736136642340,-500.0,0.00020873,3]
[347824323,1736136642349,-500.0,0.00020873,3]
[347824324,1736136642358,-500.0,0.00020873,3]
[347824325,1736136642367,-500.0,0.00020873,3]
[347824326,1736136642376,-500.0,0.00020873,3]
[347824327,1736136642386,-500.0,0.00020873,3]
[347824328,1736136642395,-500.0,0.00020873,3]
[347824329,1736136642405,-502.00476135,0.00020873,3]
[347824330,1736136642414,-500.36381872,0.00020873,3]
[347824331,1736136642424,-503.45651444,0.00020873,3]
[347824332,1736136642433,-500.0,0.00020873,3]
[347824333,1736136642443,-500.0,0.00020873,3]
[347824334,1736136642453,-500.0,0.00020873,3]
[347824335,1736136642462,-500.0,0.00020873,3]
[347824336,1736136642471,-500.0,0.00020873,3]
[347824337,1736136642481,-500.0,0.00020873,3]
[347824338,1736136642490,-505.54726783,0.00020873,3]
[347824339,1736136642499,-503.89362657,0.00020873,3]
[347824340,1736136642508,-500.0,0.00020873,3]
[347824341,1736136642518,-500.0,0.00020873,3]
[347824342,1736136642527,-500.0,0.00020873,3]
[347824343,1736136642536,-500.0,0.00020873,3]
[347824344,1736136642546,-500.0,0.00020873,3]
[347824345,1736136642556,-500.0,0.00020873,3]
[347824346,1736136642565,-500.0,0.00020873,3]
[347824347,1736136642574,-500.0,0.00020873,3]
[347824348,1736136642583,-500.0,0.00020873,3]
[347824349,1736136642593,-500.0,0.00020873,3]
[347824350,1736136642602,-274.71237048,0.00020873,3]
[347824351,1736136642612,-500.0,0.00020873,3]
[347824352,1736136642623,-500.0,0.00020873,2]
[347824354,1736136642632,-500.0,0.00020873,3]
[347824355,1736136642642,-500.0,0.00020873,3]
[347824357,1736136642651,-500.0,0.00020873,3]
[347824358,1736136642661,-500.0,0.00020873,3]
[347824359,1736136642671,-500.0,0.00020873,3]
[347824360,1736136642681,-500.0,0.00020873,3]
[347824361,1736136642691,-505.77210547,0.00020873,3]
[347824362,1736136642701,-500.0,0.00020873,3]
[347824363,1736136642710,-500.0,0.00020873,3]
[347824364,1736136642720,-500.0,0.00020873,3]
[347824365,1736136642729,-500.0,0.00020873,3]
[347824366,1736136642738,-500.0,0.00020873,3]
[347824367,1736136642747,-501.86317641,0.00020873,3]
[347824368,1736136642756,-500.0,0.00020873,3]
[347824369,1736136642765,-500.0,0.00020873,3]
[347824370,1736136642775,-500.0,0.00020873,3]
[347824371,1736136642784,-500.0,0.00020873,3]
[347824373,1736136642794,-501.10455014,0.00020873,3]
[347824374,1736136642803,-500.0,0.00020873,3]
[347824375,1736136642812,-500.0,0.00020873,3]
[347824376,1736136642821,-500.0,0.00020873,3]
[347824377,1736136642830,-500.0,0.00020873,3]
[347824378,1736136642839,-500.0,0.00020873,3]
[347824379,1736136642849,-500.0,0.00020873,3]
[347824380,1736136642858,-500.0,0.00020873,3]
[347824381,1736136642867,-500.0,0.00020873,3]
[347824382,1736136642876,-500.0,0.00020873,3]
[347824383,1736136642885,-501.38112808,0.00020873,3]
[347824385,1736136642895,-500.0,0.00020873,3]
[347824387,1736136642904,-500.0,0.00020873,3]
[347824388,1736136642913,-500.0,0.00020873,3]
[347824389,1736136642923,-500.0,0.00020873,3]
[347824390,1736136642932,-500.0,0.00020873,3]
[347824391,1736136642944,-536.9713634,0.00020873,3]
[347824393,1736136642953,-501.67940421,0.00020873,3]
[347824395,1736136642963,-500.0,0.00020873,3]
[347824396,1736136642972,-500.0,0.00020873,3]
[347824397,1736136642983,-500.0,0.00020873,3]
[347824400,1736136642993,-500.0,0.00020873,3]
[347824403,1736136643071,-500.0,0.00020873,3]
[347824404,1736136643080,-191.94491142,0.00020873,3]
[347824405,1736136643090,-500.0,0.00020873,3]
[347824406,1736136643099,-500.0,0.00020873,3]
[347824407,1736136643108,-501.40124106,0.00020873,3]
[347824408,1736136643117,-419.85927589,0.00020873,3]
[347824409,1736136643127,-439.48662307,0.00020873,3]
[347824410,1736136643137,-500.0,0.00020873,3]
[347824411,1736136643146,-500.0,0.00020873,3]
[347824412,1736136643155,-500.0,0.00020873,3]
[347824413,1736136643165,-500.0,0.00020873,3]
[347824414,1736136643175,-500.0,0.00020873,3]
[347824415,1736136643185,-500.0,0.00020873,3]
[347824416,1736136643194,-500.0,0.00020873,3]
[347824417,1736136643205,-500.0,0.00020873,3]
[347824418,1736136643214,-500.0,0.00020873,3]
[347824419,1736136643223,-500.0,0.00020873,3]
[347824420,1736136643233,-502.28045687,0.00020873,3]
[347824421,1736136643243,-500.0,0.00020873,3]
[347824422,1736136643252,-500.0,0.00020873,3]
[347824423,1736136643262,-500.0,0.00020873,3]
[347824424,1736136643271,-500.0,0.00020873,3]
[347824425,1736136643280,-500.0,0.00020873,3]
[347824426,1736136643290,-500.0,0.00020873,3]
[347824427,1736136643300,-500.0,0.00020873,3]
[347824428,1736136643309,-500.0,0.00020873,3]
[347824429,1736136643318,-500.0,0.00020873,3]
[347824430,1736136643328,-500.0,0.00020873,3]
[347824431,1736136643337,-420.31913864,0.00020873,3]
[347824432,1736136643347,-504.5335945,0.00020873,3]
[347824433,1736136643356,-500.0,0.00020873,3]
[347824434,1736136643365,-500.0,0.00020873,3]
[347824435,1736136643375,-500.0,0.00020873,3]
[347824436,1736136643384,-500.0,0.00020873,3]
[347824437,1736136643393,-500.0,0.00020873,3]